[Event "6e festival d'échecs d'Allauch"]
[Site "Allauch, France"]
[Date "2024.08.29"]
[Round "7.1"]
[White "Philippe, Guillaume"]
[Black "Charvein, Gabriel"]
[Result "1/2-1/2"]
[TimeControl "1 h 30 min (+30s/coup)"]
[WhiteElo "2356"]
[BlackElo "2011"]

1. f4 {[%clk 01:30:31]} {[%emt 00:00:29]} d5 {[%clk 01:30:18]} {[%emt
00:00:40]} 2. Nf3 {[%clk 01:30:58]} {[%emt 00:00:07]} Bg4 {[%clk 01:30:42]}
{[%emt 00:00:05]} 3. e3 {[%clk 01:31:17]} {[%emt 00:00:11]} Nd7 {[%clk
01:31:04]} {[%emt 00:00:08]} 4. Be2 {[%clk 01:31:42]} {[%emt 00:00:05]} c6
{[%clk 01:31:15]} {[%emt 00:00:21]} 5. O-O {[%clk 01:32:04]} {[%emt 00:00:07]}
Bxf3 {[%clk 01:23:59]} {[%emt 00:07:46]} 6. Bxf3 {[%clk 01:31:42]} {[%emt
00:00:52]} e6 {[%clk 01:24:09]} {[%emt 00:00:19]} 7. d3 {[%clk 01:31:01]}
{[%emt 00:01:11]} Ngf6 {[%clk 01:23:55]} {[%emt 00:00:45]} 8. Nc3 {[%clk
01:26:22]} {[%emt 00:05:07]} Qc7 {[%clk 01:20:29]} {[%emt 00:03:57]} 9. Rb1
{[%clk 01:25:41]} {[%emt 00:01:11]} Bd6 {[%clk 01:15:04]} {[%emt 00:05:56]} 10.
g3 {[%clk 01:24:13]} {[%emt 00:01:58]} h5 {[%clk 01:13:51]} {[%emt 00:01:43]}
11. e4 {[%clk 01:23:54]} {[%emt 00:00:49]} dxe4 {[%clk 01:13:40]} {[%emt
00:00:41]} 12. dxe4 {[%clk 01:23:16]} {[%emt 00:01:09]} e5 {[%clk 01:10:10]}
{[%emt 00:03:59]} 13. f5 {[%clk 01:23:36]} {[%emt 00:00:10]} Bc5+ {[%clk
01:08:44]} {[%emt 00:01:58]} 14. Kg2 {[%clk 01:23:26]} {[%emt 00:00:39]} O-O-O
{[%clk 01:08:57]} {[%emt 00:00:17]} 15. Qe2 {[%clk 01:19:56]} {[%emt 00:03:59]}
Bd4 {[%clk 00:56:53]} {[%emt 00:12:35]} 16. Nd1 {[%clk 01:19:13]} {[%emt
00:01:12]} g6 {[%clk 00:43:56]} {[%emt 00:13:28]} 17. fxg6 {[%clk 01:18:40]}
{[%emt 00:01:03]} fxg6 {[%clk 00:44:18]} {[%emt 00:00:08]} 18. c3 {[%clk
01:11:05]} {[%emt 00:08:05]} Bb6 {[%clk 00:41:58]} {[%emt 00:02:51]} 19. Nf2
{[%clk 01:01:06]} {[%emt 00:10:28]} Rdg8 {[%clk 00:37:09]} {[%emt 00:05:19]} 20.
h4 {[%clk 00:59:33]} {[%emt 00:02:03]} Bxf2 {[%clk 00:26:50]} {[%emt 00:10:50]}
21. Qxf2 {[%clk 00:59:00]} {[%emt 00:01:02]} b6 {[%clk 00:27:11]} {[%emt
00:00:10]} 22. Be3 {[%clk 00:56:36]} {[%emt 00:02:53]} Kb7 {[%emt 00:03:54]} 23.
Rbd1 {[%clk 00:56:37]} Nf8 {[%clk 00:23:58]} {[%emt 00:00:48]} 24. Qd2 {[%clk
00:56:01]} {[%emt 00:01:05]} N8h7 {[%clk 00:22:13]} {[%emt 00:02:16]} 25. Qd6
{[%clk 00:51:11]} {[%emt 00:05:20]} Rd8 {[%clk 00:21:52]} {[%emt 00:00:52]} 26.
Qxc7+ {[%clk 00:51:28]} {[%emt 00:00:12]} Kxc7 {[%clk 00:22:21]} {[%emt
00:00:02]} 27. Rxd8 {[%clk 00:46:24]} {[%emt 00:05:34]} Rxd8 {[%clk 00:22:42]}
{[%emt 00:00:09]} 28. Be2 {[%clk 00:45:14]} {[%emt 00:01:39]} Rd7 {[%clk
00:22:44]} {[%emt 00:00:29]} 29. Rd1 {[%clk 00:45:16]} {[%emt 00:00:28]} Nf8
{[%clk 00:19:06]} {[%emt 00:04:08]} 30. Rxd7+ {[%clk 00:44:14]} {[%emt
00:01:32]} N8xd7 {[%clk 00:18:55]} {[%emt 00:00:41]} 31. Bc4 {[%clk 00:42:39]}
{[%emt 00:02:05]} Kd6 {[%clk 00:18:53]} {[%emt 00:00:33]} 32. Bf7 {[%clk
00:42:51]} {[%emt 00:00:17]} Nf8 {[%clk 00:19:16]} {[%emt 00:00:07]} 33. Kf3
{[%clk 00:42:12]} {[%emt 00:01:09]} Ke7 {[%clk 00:19:24]} {[%emt 00:00:23]} 34.
Bb3 {[%clk 00:41:11]} {[%emt 00:01:30]} Ne6 {[%clk 00:18:54]} {[%emt 00:01:00]}
35. a4 {[%clk 00:41:10]} {[%emt 00:00:32]} Nd7 {[%clk 00:17:59]} {[%emt
00:01:25]} 36. Bc2 {[%clk 00:34:59]} {[%emt 00:06:37]} Kf6 {[%clk 00:15:35]}
{[%emt 00:02:57]} 37. Ke2 {[%clk 00:28:37]} {[%emt 00:06:52]} Ke7 {[%clk
00:14:53]} {[%emt 00:01:13]} 38. b4 {[%clk 00:27:36]} {[%emt 00:01:30]} Kd6
{[%clk 00:14:26]} {[%emt 00:00:57]} 39. Bd3 {[%clk 00:26:57]} {[%emt 00:01:10]}
Nf6 {[%clk 00:13:26]} {[%emt 00:01:30]} 40. Kf3 {[%clk 00:27:05]} {[%emt
00:00:21]} Nd7 {[%clk 00:09:34]} {[%emt 00:04:23]} 41. Bc4 {[%clk 00:26:04]}
{[%emt 00:01:29]} Ke7 {[%clk 00:09:03]} {[%emt 00:01:03]} 42. Ba6 {[%clk
00:16:22]} {[%emt 00:10:12]} Kd8 {[%clk 00:08:02]} {[%emt 00:01:31]} 43. a5
{[%clk 00:15:56]} {[%emt 00:00:57]} Kc7 {[%clk 00:07:41]} {[%emt 00:00:50]} 44.
Bc4 {[%clk 00:14:55]} {[%emt 00:01:31]} Kd6 {[%clk 00:07:46]} {[%emt 00:00:26]}
45. Ke2 {[%clk 00:14:31]} {[%emt 00:00:53]} Ke7 {[%clk 00:07:48]} {[%emt
00:00:29]} 46. Kf3 {[%clk 00:12:54]} {[%emt 00:02:06]} Kd6 {[%clk 00:08:05]}
{[%emt 00:00:13]} 47. Bf1 {[%clk 00:11:03]} {[%emt 00:02:21]} Ke7 {[%clk
00:05:12]} {[%emt 00:03:23]} 48. Bh3 {[%clk 00:10:34]} {[%emt 00:00:59]} Kd6
{[%clk 00:05:29]} {[%emt 00:00:14]} 49. g4 {[%clk 00:10:40]} {[%emt 00:00:24]}
hxg4+ {[%clk 00:05:43]} {[%emt 00:00:16]} 50. Bxg4 {[%clk 00:11:05]} {[%emt
00:00:05]} Ke7 {[%clk 00:06:03]} {[%emt 00:00:09]} 51. Bxe6 {[%clk 00:07:37]}
{[%emt 00:03:58]} Kxe6 {[%clk 00:06:32]} {[%emt 00:00:01]} 52. a6 {[%clk
00:07:53]} {[%emt 00:00:15]} Nb8 {[%clk 00:00:42]} {[%emt 00:06:20]} 53. Bxb6
{[%clk 00:08:04]} {[%emt 00:00:18]} Nxa6 {[%clk 00:01:08]} {[%emt 00:00:05]} 54.
Bxa7 {[%clk 00:08:27]} {[%emt 00:00:07]} Nc7 {[%clk 00:01:35]} {[%emt
00:00:03]} 55. c4 {[%clk 00:07:19]} {[%emt 00:01:37]} Kf6 {[%clk 00:02:01]}
{[%emt 00:00:04]} 56. Be3 {[%clk 00:07:25]} {[%emt 00:00:25]} Ne6 {[%clk
00:01:55]} {[%emt 00:00:36]} 57. b5 {[%clk 00:07:29]} {[%emt 00:00:26]} cxb5
{[%clk 00:02:21]} {[%emt 00:00:04]} 58. cxb5 {[%clk 00:07:55]} {[%emt
00:00:04]} Ke7 {[%clk 00:02:41]} {[%emt 00:00:09]} 59. Ke2 {[%clk 00:04:36]}
{[%emt 00:03:48]} Kd6 {[%clk 00:02:52]} {[%emt 00:00:21]} 60. b6 {[%clk
00:05:00]} {[%emt 00:00:06]} Kc6 {[%clk 00:01:36]} {[%emt 00:01:46]} 61. Kd3
{[%clk 00:05:20]} {[%emt 00:00:09]} Nd8 {[%clk 00:01:22]} {[%emt 00:00:44]} 62.
Bf2 {[%clk 00:04:11]} {[%emt 00:01:38]} Nb7 {[%clk 00:01:28]} {[%emt 00:00:25]}
63. Ke2 {[%clk 00:04:13]} {[%emt 00:00:28]} Nd6 {[%clk 00:01:27]} {[%emt
00:00:32]} 64. Kf3 {[%clk 00:04:38]} {[%emt 00:00:04]} Nc4 {[%clk 00:01:47]}
{[%emt 00:00:10]} 65. Kg4 {[%clk 00:03:20]} {[%emt 00:01:47]} Nd2 {[%clk
00:02:14]} {[%emt 00:00:04]} 66. Bg3 {[%clk 00:03:29]} {[%emt 00:00:20]} Nxe4
{[%clk 00:01:54]} {[%emt 00:00:52]} 67. Bxe5 {[%clk 00:03:56]} {[%emt
00:00:03]} Kxb6 {[%clk 00:02:16]} {[%emt 00:00:08]} 68. Kf4 {[%clk 00:04:08]}
{[%emt 00:00:18]} g5+ {[%clk 00:02:37]} {[%emt 00:00:09]} 1/2-1/2

[Event "6e festival d'échecs d'Allauch"]
[Site "Allauch, France"]
[Date "2024.08.29"]
[Round "7.2"]
[White "Degraeve, Remy"]
[Black "Fournier, Loic"]
[Result "1-0"]
[TimeControl "1 h 30 min (+30s/coup)"]
[WhiteElo "2402"]
[BlackElo "2098"]

1. e4 {[%clk 01:28:30]} {[%emt 00:02:30]} c5 {[%clk 01:30:44]} {[%emt
00:00:17]} 2. Nf3 {[%clk 01:28:54]} {[%emt 00:00:05]} Nc6 {[%clk 01:31:08]}
{[%emt 00:00:07]} 3. Bb5 {[%clk 01:29:20]} {[%emt 00:00:04]} g6 {[%clk
01:31:27]} {[%emt 00:00:10]} 4. Bxc6 {[%clk 01:29:46]} {[%emt 00:00:04]} dxc6
{[%clk 01:31:50]} {[%emt 00:00:08]} 5. d3 {[%clk 01:30:13]} {[%emt 00:00:03]}
Bg7 {[%clk 01:32:11]} {[%emt 00:00:09]} 6. h3 {[%clk 01:30:36]} {[%emt
00:00:07]} e5 {[%clk 01:29:30]} {[%emt 00:03:11]} 7. O-O {[%clk 01:31:00]}
{[%emt 00:00:06]} Qe7 {[%clk 01:28:11]} {[%emt 00:01:49]} 8. a4 {[%clk
01:31:23]} {[%emt 00:00:07]} a5 {[%clk 01:28:35]} {[%emt 00:00:05]} 9. Na3
{[%clk 01:31:47]} {[%emt 00:00:06]} b6 {[%clk 01:28:14]} {[%emt 00:00:51]} 10.
Nc4 {[%clk 01:31:09]} {[%emt 00:01:09]} Qc7 {[%clk 01:26:56]} {[%emt 00:01:49]}
11. Be3 {[%clk 01:29:34]} {[%emt 00:02:05]} Ba6 {[%clk 01:27:06]} {[%emt
00:00:19]} 12. Nfd2 {[%clk 01:29:23]} {[%emt 00:00:41]} Nf6 {[%clk 01:24:31]}
{[%emt 00:03:05]} 13. b4 {[%clk 01:20:36]} {[%emt 00:09:17]} Bxc4 {[%clk
01:08:21]} {[%emt 00:16:40]} 14. Nxc4 {[%clk 01:20:31]} {[%emt 00:00:35]} b5
{[%clk 01:03:20]} {[%emt 00:05:31]} 15. axb5 {[%clk 01:06:32]} {[%emt
00:14:29]} cxb5 {[%clk 01:03:01]} {[%emt 00:00:49]} 16. Rxa5 {[%clk 01:06:57]}
{[%emt 00:00:05]} Rxa5 {[%clk 01:01:39]} {[%emt 00:01:51]} 17. Nxa5 {[%clk
01:07:24]} {[%emt 00:00:03]} cxb4 {[%clk 01:01:42]} {[%emt 00:00:27]} 18. Nb3
{[%clk 01:07:42]} {[%emt 00:00:12]} O-O {[%clk 01:01:53]} {[%emt 00:00:20]} 19.
Bc5 {[%clk 01:07:25]} {[%emt 00:00:46]} Rc8 {[%clk 01:01:31]} {[%emt 00:00:53]}
20. Qd2 {[%clk 01:07:50]} {[%emt 00:00:05]} Bf8 {[%clk 00:58:04]} {[%emt
00:03:57]} 21. Bxf8 {[%clk 01:08:05]} {[%emt 00:00:14]} Rxf8 {[%clk 00:58:09]}
{[%emt 00:00:26]} 22. Qxb4 {[%clk 01:08:03]} {[%emt 00:00:33]} Qxc2 {[%clk
00:56:52]} {[%emt 00:01:46]} 23. Qxb5 {[%clk 01:08:29]} {[%emt 00:00:04]} Rd8
{[%clk 00:48:57]} {[%emt 00:08:25]} 24. Nc5 {[%clk 01:08:20]} {[%emt 00:00:40]}
Nh5 {[%clk 00:36:03]} {[%emt 00:13:24]} 25. Nd7 {[%clk 01:05:01]} {[%emt
00:03:48]} Qc7 {[%clk 00:31:42]} {[%emt 00:04:52]} 26. Nc5 {[%clk 00:58:12]}
{[%emt 00:07:19]} Nf4 {[%clk 00:31:24]} {[%emt 00:00:48]} 27. Rb1 {[%clk
00:55:48]} {[%emt 00:02:54]} Rc8 {[%clk 00:27:37]} {[%emt 00:04:16]} 28. Na4
{[%clk 00:27:19]} {[%emt 00:28:59]} Qc2 {[%clk 00:25:50]} {[%emt 00:02:18]} 29.
Rb2 {[%clk 00:11:04]} {[%emt 00:16:45]} Qd1+ {[%clk 00:13:46]} {[%emt
00:12:34]} 30. Kh2 {[%clk 00:11:09]} {[%emt 00:00:25]} Qf1 {[%clk 00:13:25]}
{[%emt 00:00:52]} 31. f3 {[%clk 00:11:35]} {[%emt 00:00:04]} h5 {[%clk
00:07:29]} {[%emt 00:06:26]} 32. Nc5 {[%clk 00:04:13]} {[%emt 00:07:51]} Ne2
{[%clk 00:06:32]} {[%emt 00:01:27]} 33. Rb1 {[%clk 00:04:41]} {[%emt 00:00:02]}
Qf2 {[%clk 00:07:00]} {[%emt 00:00:01]} 34. Nd7 {[%clk 00:04:27]} {[%emt
00:00:44]} Qg3+ {[%clk 00:06:34]} {[%emt 00:00:57]} 35. Kh1 {[%clk 00:04:53]}
{[%emt 00:00:03]} Qf4 {[%clk 00:05:52]} {[%emt 00:01:12]} 36. Qb2 {[%clk
00:03:57]} {[%emt 00:01:26]} Ng3+ {[%clk 00:04:30]} {[%emt 00:01:52]} 37. Kg1
{[%clk 00:04:24]} {[%emt 00:00:03]} h4 {[%clk 00:02:53]} {[%emt 00:02:09]} 38.
Re1 {[%clk 00:02:41]} {[%emt 00:02:12]} Re8 {[%clk 00:00:47]} {[%emt 00:02:36]}
39. d4 {[%clk 00:02:16]} {[%emt 00:00:55]} exd4 {[%clk 00:00:48]} {[%emt
00:00:30]} 40. Qxd4 {[%clk 00:02:34]} {[%emt 00:00:11]} Rc8 {[%clk 00:00:38]}
{[%emt 00:00:41]} 41. Nf6+ {[%clk 00:02:25]} {[%emt 00:00:39]} Kf8 {[%clk
00:00:56]} {[%emt 00:00:12]} 42. Nd5 {[%clk 00:02:00]} {[%emt 00:00:54]} Qc1
{[%clk 00:00:33]} {[%emt 00:00:53]} 43. Qh8# {[%clk 00:02:23]} {[%emt
00:00:07]} Qg5 {[%emt 00:00:14]} 44. Qd4 Ne2+ 45. Rxe2 {[%emt 00:00:01]} Rc1+
{[%emt 00:00:02]} 46. Kf2 Qg3+ 47. Ke3 Qg5+ {[%emt 00:00:01]} 48. Kf2 {[%emt
00:00:02]} Qf4 49. Kg1 Rc8 {[%clk 00:00:00]} 50. Re1 {[%clk 00:02:23]} 1-0

[Event "6e festival d'échecs d'Allauch"]
[Site "Allauch, France"]
[Date "2024.08.29"]
[Round "7.3"]
[White "Charlier, Antoine"]
[Black "Degraeve, Jean-Marc"]
[Result "0-1"]
[TimeControl "1 h 30 min (+30s/coup)"]
[WhiteElo "2070"]
[BlackElo "2487"]

1. d4 {[%clk 01:30:46]} {[%emt 00:00:12]} Nf6 {[%clk 01:29:03]} {[%emt
00:01:58]} 2. c4 {[%clk 01:30:39]} {[%emt 00:00:38]} g6 {[%clk 01:29:26]}
{[%emt 00:00:07]} 3. h4 {[%clk 01:30:31]} {[%emt 00:00:37]} c5 {[%clk
01:29:14]} {[%emt 00:00:42]} 4. d5 {[%clk 01:29:54]} {[%emt 00:01:07]} b5
{[%clk 01:29:17]} {[%emt 00:00:27]} 5. cxb5 {[%clk 01:28:35]} {[%emt 00:01:49]}
a6 {[%clk 01:29:42]} {[%emt 00:00:06]} 6. bxa6 {[%clk 01:25:59]} {[%emt
00:03:06]} d6 {[%clk 01:29:22]} {[%emt 00:00:50]} 7. Nc3 {[%clk 01:25:56]}
{[%emt 00:00:33]} Bxa6 {[%clk 01:29:33]} {[%emt 00:00:20]} 8. e4 {[%clk
01:24:43]} {[%emt 00:01:42]} Bxf1 {[%clk 01:29:53]} {[%emt 00:00:10]} 9. Kxf1
{[%clk 01:24:41]} {[%emt 00:00:32]} Bg7 {[%clk 01:30:02]} {[%emt 00:00:21]} 10.
Nge2 {[%clk 01:23:28]} {[%emt 00:01:44]} Nbd7 {[%clk 01:30:09]} {[%emt
00:00:23]} 11. Bf4 {[%clk 01:20:26]} {[%emt 00:03:32]} Qa5 {[%clk 01:29:13]}
{[%emt 00:01:26]} 12. f3 {[%clk 01:18:18]} {[%emt 00:02:38]} O-O {[%clk
01:28:58]} {[%emt 00:00:45]} 13. Qd2 {[%clk 01:16:05]} {[%emt 00:02:43]} Rfb8
{[%clk 01:24:51]} {[%emt 00:04:37]} 14. g4 {[%clk 01:00:22]} {[%emt 00:16:12]}
h5 {[%clk 01:24:37]} {[%emt 00:00:44]} 15. Bh6 {[%clk 00:45:01]} {[%emt
00:15:52]} hxg4 {[%clk 01:23:24]} {[%emt 00:01:42]} 16. Ng3 {[%clk 00:36:29]}
{[%emt 00:09:02]} Bxh6 {[%clk 01:21:41]} {[%emt 00:02:13]} 17. Qxh6 {[%clk
00:34:19]} {[%emt 00:02:39]} Rxb2 {[%clk 01:22:05]} {[%emt 00:00:06]} 18. Rc1
{[%clk 00:32:22]} {[%emt 00:02:27]} Qa6+ {[%clk 01:22:27]} {[%emt 00:00:09]} 19.
Kg1 {[%clk 00:29:11]} {[%emt 00:03:41]} Ne5 {[%clk 01:22:53]} {[%emt 00:00:05]}
0-1

[Event "6e festival d'échecs d'Allauch"]
[Site "Allauch, France"]
[Date "2024.08.29"]
[Round "7.4"]
[White "Derige Kane, Yan"]
[Black "Durand-Benmoussa, Roman"]
[Result "0-1"]
[TimeControl "1 h 30 min (+30s/coup)"]
[WhiteElo "2141"]
[BlackElo "2109"]

1. d4 {[%clk 01:25:54]} {[%emt 00:04:52]} d5 {[%clk 01:30:47]} {[%emt
00:00:26]} 2. c4 {[%clk 01:26:20]} {[%emt 00:00:04]} e6 {[%clk 01:31:14]}
{[%emt 00:00:03]} 3. Nc3 {[%clk 01:26:46]} {[%emt 00:00:04]} c5 {[%clk
01:31:41]} {[%emt 00:00:03]} 4. e3 {[%clk 01:20:25]} {[%emt 00:06:51]} Nf6
{[%clk 01:31:05]} {[%emt 00:01:06]} 5. Nf3 {[%clk 01:20:49]} {[%emt 00:00:06]}
a6 {[%clk 01:31:04]} {[%emt 00:00:30]} 6. cxd5 {[%clk 01:20:49]} {[%emt
00:00:31]} exd5 {[%clk 01:31:20]} {[%emt 00:00:14]} 7. dxc5 {[%clk 01:15:14]}
{[%emt 00:06:05]} Bxc5 {[%clk 01:30:45]} {[%emt 00:01:04]} 8. Be2 {[%clk
01:15:43]} {[%emt 00:00:02]} O-O {[%clk 01:28:54]} {[%emt 00:02:21]} 9. O-O
{[%clk 01:16:07]} {[%emt 00:00:06]} Nc6 {[%clk 01:29:20]} {[%emt 00:00:03]} 10.
a3 {[%clk 01:14:57]} {[%emt 00:01:41]} Ba7 {[%clk 01:24:39]} {[%emt 00:05:10]}
11. b4 {[%clk 01:12:36]} {[%emt 00:02:51]} Re8 {[%clk 01:24:17]} {[%emt
00:00:52]} 12. Bb2 {[%clk 01:11:34]} {[%emt 00:01:32]} Qd6 {[%clk 01:22:15]}
{[%emt 00:02:32]} 13. b5 {[%clk 01:10:18]} {[%emt 00:01:47]} Ne5 {[%clk
01:20:55]} {[%emt 00:01:50]} 14. Qd2 {[%clk 01:01:17]} {[%emt 00:09:31]} Neg4
{[%clk 01:03:32]} {[%emt 00:17:53]} 15. Kh1 {[%clk 00:46:27]} {[%emt 00:15:20]}
Bf5 {[%clk 01:00:47]} {[%emt 00:03:15]} 16. g3 {[%clk 00:41:19]} {[%emt
00:05:38]} Rad8 {[%clk 00:49:20]} {[%emt 00:11:58]} 17. Nd4 {[%clk 00:40:05]}
{[%emt 00:01:43]} Bc8 {[%clk 00:49:19]} {[%emt 00:00:31]} 18. bxa6 {[%clk
00:39:28]} {[%emt 00:01:07]} bxa6 {[%clk 00:49:35]} {[%emt 00:00:14]} 19. Rad1
{[%clk 00:38:11]} {[%emt 00:01:47]} h5 {[%clk 00:48:45]} {[%emt 00:01:20]} 20.
Qc2 {[%clk 00:32:11]} {[%emt 00:06:30]} Bb8 {[%clk 00:29:24]} {[%emt 00:19:51]}
21. Bf3 {[%clk 00:30:42]} {[%emt 00:01:59]} g6 {[%clk 00:21:59]} {[%emt
00:07:55]} 22. Nce2 {[%clk 00:24:35]} {[%emt 00:06:36]} h4 {[%clk 00:20:43]}
{[%emt 00:01:47]} 23. Nc6 {[%clk 00:22:18]} {[%emt 00:02:46]} hxg3 {[%clk
00:20:08]} {[%emt 00:01:05]} 24. Nxg3 {[%clk 00:20:36]} {[%emt 00:02:13]} Bf5
{[%clk 00:16:19]} {[%emt 00:04:19]} 25. Qc3 {[%clk 00:20:28]} {[%emt 00:00:38]}
Rc8 {[%clk 00:16:18]} {[%emt 00:00:31]} 26. Bxd5 {[%clk 00:18:44]} {[%emt
00:02:14]} Qf8 {[%clk 00:14:25]} {[%emt 00:02:24]} 27. Nxf5 {[%clk 00:15:59]}
{[%emt 00:03:15]} gxf5 {[%clk 00:14:53]} {[%emt 00:00:01]} 28. h3 {[%clk
00:14:10]} {[%emt 00:02:19]} Qh6 {[%clk 00:14:15]} {[%emt 00:01:08]} 29. Bg2
{[%clk 00:04:17]} {[%emt 00:10:24]} Ne4 {[%clk 00:08:38]} {[%emt 00:06:06]} 30.
Ne7+ {[%clk 00:04:39]} {[%emt 00:00:07]} Kh7 {[%clk 00:08:35]} {[%emt
00:00:34]} 31. Nxf5 {[%clk 00:00:35]} {[%emt 00:04:34]} Nxc3 {[%clk 00:08:23]}
{[%emt 00:00:42]} 32. Nxh6 {[%clk 00:00:46]} {[%emt 00:00:20]} Nxf2+ {[%clk
00:08:07]} {[%emt 00:00:46]} 33. Rxf2 {[%clk 00:00:33]} {[%emt 00:00:43]} Nxd1
{[%clk 00:08:32]} {[%emt 00:00:06]} 34. Rxf7+ {[%clk 00:00:33]} {[%emt
00:00:29]} Kxh6 {[%clk 00:08:53]} {[%emt 00:00:09]} 0-1

[Event "6e festival d'échecs d'Allauch"]
[Site "Allauch, France"]
[Date "2024.08.29"]
[Round "7.5"]
[White "Menager, Stephane"]
[Black "Sembel Rudelle, Gael"]
[Result "0-1"]
[TimeControl "1 h 30 min (+30s/coup)"]
[WhiteElo "1660"]
[BlackElo "1624"]

1. d4 {[%clk 01:30:56]} {[%emt 00:00:03]} d5 {[%clk 01:30:56]} {[%emt
00:00:04]} 2. c4 {[%clk 01:31:23]} {[%emt 00:00:03]} c6 {[%clk 01:31:24]}
{[%emt 00:00:03]} 3. cxd5 {[%clk 01:26:52]} {[%emt 00:05:01]} cxd5 {[%clk
01:31:48]} {[%emt 00:00:06]} 4. Nc3 {[%clk 01:26:18]} {[%emt 00:01:03]} Nf6
{[%clk 01:31:17]} {[%emt 00:01:02]} 5. h3 {[%clk 01:25:30]} {[%emt 00:01:18]}
Bf5 {[%clk 01:31:18]} {[%emt 00:00:29]} 6. Qb3 {[%clk 01:23:49]} {[%emt
00:02:11]} Qd7 {[%clk 01:25:07]} {[%emt 00:06:41]} 7. Nf3 {[%clk 01:17:53]}
{[%emt 00:06:26]} e6 {[%clk 01:24:06]} {[%emt 00:01:32]} 8. Ne5 {[%clk
01:16:36]} {[%emt 00:01:46]} Qc7 {[%clk 01:21:32]} {[%emt 00:03:05]} 9. Bf4
{[%clk 01:13:51]} {[%emt 00:03:15]} Qb6 {[%clk 01:19:59]} {[%emt 00:02:03]} 10.
Qxb6 {[%clk 01:10:16]} {[%emt 00:04:05]} axb6 {[%clk 01:20:19]} {[%emt
00:00:10]} 11. Rc1 {[%clk 01:09:17]} {[%emt 00:01:29]} Nfd7 {[%clk 01:15:38]}
{[%emt 00:05:11]} 12. a3 {[%clk 01:05:00]} {[%emt 00:04:47]} Bd6 {[%clk
01:12:14]} {[%emt 00:03:54]} 13. Nb5 {[%clk 01:04:02]} {[%emt 00:01:28]} Bxe5
{[%clk 01:12:34]} {[%emt 00:00:09]} 14. Bxe5 {[%clk 01:03:43]} {[%emt
00:00:48]} O-O {[%clk 01:09:58]} {[%emt 00:03:06]} 15. Bd6 {[%clk 00:52:23]}
{[%emt 00:11:50]} Rd8 {[%clk 01:03:03]} {[%emt 00:07:25]} 16. Bc7 {[%clk
00:51:52]} {[%emt 00:01:01]} Rc8 {[%clk 01:02:47]} {[%emt 00:00:46]} 17. Nd6
{[%clk 00:52:20]} {[%emt 00:00:02]} Na6 {[%clk 01:03:12]} {[%emt 00:00:06]} 18.
Nb5 {[%clk 00:49:07]} {[%emt 00:03:42]} Nf6 {[%clk 01:02:44]} {[%emt 00:00:58]}
19. Bf4 {[%clk 00:47:46]} {[%emt 00:01:50]} Rxc1+ {[%clk 01:01:26]} {[%emt
00:01:48]} 20. Bxc1 {[%clk 00:48:15]} {[%emt 00:00:02]} Rc8 {[%clk 01:01:55]}
21. Nc3 {[%clk 00:48:43]} {[%emt 00:00:02]} b5 {[%clk 01:01:44]} {[%emt
00:00:42]} 22. f3 {[%clk 00:33:01]} {[%emt 00:16:11]} b4 {[%clk 00:59:59]}
{[%emt 00:02:15]} 23. axb4 {[%clk 00:33:13]} {[%emt 00:00:17]} Nxb4 {[%clk
01:00:21]} {[%emt 00:00:07]} 24. e3 {[%clk 00:32:51]} {[%emt 00:00:53]} Bd3
{[%clk 00:57:39]} {[%emt 00:03:12]} 25. Kd2 {[%clk 00:31:38]} {[%emt 00:01:43]}
Bxf1 {[%clk 00:57:16]} {[%emt 00:00:53]} 26. Rxf1 {[%clk 00:32:06]} {[%emt
00:00:02]} Rc4 {[%clk 00:52:15]} {[%emt 00:05:32]} 27. b3 {[%clk 00:27:11]}
{[%emt 00:05:25]} Rc8 {[%clk 00:52:41]} {[%emt 00:00:04]} 28. Ba3 {[%clk
00:26:50]} {[%emt 00:00:51]} Nc6 {[%clk 00:52:56]} {[%emt 00:00:15]} 29. Bb2
{[%clk 00:25:18]} {[%emt 00:02:02]} Na5 {[%clk 00:53:04]} {[%emt 00:00:22]} 30.
Kc2 {[%clk 00:24:25]} {[%emt 00:01:22]} Nh5 {[%clk 00:52:35]} {[%emt 00:00:59]}
31. Ba3 {[%clk 00:21:57]} {[%emt 00:02:59]} Ng3 {[%clk 00:52:08]} {[%emt
00:00:57]} 32. Re1 {[%clk 00:22:26]} {[%emt 00:00:02]} Nf5 {[%clk 00:51:27]}
{[%emt 00:01:10]} 33. Bb4 {[%clk 00:20:55]} {[%emt 00:02:01]} Nc6 {[%clk
00:51:10]} {[%emt 00:00:47]} 34. Bc5 {[%clk 00:20:31]} {[%emt 00:00:53]} Nb8
{[%clk 00:44:45]} {[%emt 00:06:56]} 35. Kb2 {[%clk 00:19:12]} {[%emt 00:01:49]}
Na6 {[%clk 00:43:58]} {[%emt 00:01:17]} 36. Na4 {[%clk 00:18:41]} {[%emt
00:01:01]} b5 {[%clk 00:43:51]} {[%emt 00:00:37]} 37. Nb6 {[%clk 00:16:55]}
{[%emt 00:02:15]} Nxc5 {[%clk 00:44:06]} {[%emt 00:00:15]} 38. dxc5 {[%clk
00:13:04]} {[%emt 00:04:21]} Rxc5 {[%clk 00:44:13]} {[%emt 00:00:22]} 39. g4
{[%clk 00:12:32]} {[%emt 00:01:03]} Nd6 {[%clk 00:42:46]} {[%emt 00:01:57]} 40.
Ra1 {[%clk 00:12:37]} {[%emt 00:00:25]} g5 {[%clk 00:42:11]} {[%emt 00:01:04]}
41. Nd7 {[%clk 00:09:47]} {[%emt 00:03:20]} Rc7 {[%clk 00:39:49]} {[%emt
00:02:50]} 42. Nf6+ {[%clk 00:09:39]} {[%emt 00:00:40]} Kg7 {[%clk 00:40:10]}
{[%emt 00:00:09]} 43. Nh5+ {[%clk 00:09:49]} {[%emt 00:00:21]} Kf8 {[%clk
00:31:36]} {[%emt 00:09:05]} 44. Ra8+ {[%clk 00:08:19]} {[%emt 00:01:59]} Rc8
{[%clk 00:27:51]} {[%emt 00:04:15]} 45. Rxc8+ {[%clk 00:08:31]} {[%emt
00:00:18]} Nxc8 {[%clk 00:28:18]} {[%emt 00:00:04]} 46. Kc3 {[%clk 00:07:44]}
{[%emt 00:01:17]} Nd6 {[%clk 00:24:59]} {[%emt 00:03:48]} 47. Kb4 {[%clk
00:08:13]} {[%emt 00:00:02]} Ke7 {[%clk 00:24:52]} {[%emt 00:00:37]} 48. Kc5
{[%clk 00:08:42]} {[%emt 00:00:01]} f5 {[%clk 00:15:03]} {[%emt 00:10:19]} 49.
Nf6 {[%clk 00:05:32]} {[%emt 00:03:40]} Kxf6 {[%clk 00:13:39]} {[%emt
00:01:53]} 50. Kxd6 {[%clk 00:05:59]} {[%emt 00:00:03]} f4 {[%clk 00:13:58]}
0-1